[Event "32nd NATO Chess Championship"]
[Site "Tartu, Estonia"]
[Date "2022.06.30"]
[Round "5.25"]
[White "Stuhr, Finn"]
[Black "Pirs, Matjaz"]
[Result "0-1"]
[TimeControl "90 min + 30 sec increment from move one"]
[WhiteFideId "1400789"]
[BlackFideId "14606941"]
[WhiteElo "1686"]
[BlackElo "1965"]

1. e4 {[%clk 01:30:58]} {[%emt 00:00:01]} e6 {[%clk 01:30:48]} {[%emt
00:00:13]} 2. d4 {[%clk 01:31:19]} {[%emt 00:00:09]} d5 {[%clk 01:31:02]}
{[%emt 00:00:16]} 3. e5 {[%clk 01:31:40]} {[%emt 00:00:09]} c5 {[%clk
01:31:09]} {[%emt 00:00:23]} 4. c3 {[%clk 01:31:57]} {[%emt 00:00:13]} Qb6
{[%clk 01:31:21]} {[%emt 00:00:17]} 5. Bd3 {[%clk 01:31:20]} {[%emt 00:01:09]}
Nc6 {[%clk 01:31:07]} {[%emt 00:00:45]} 6. Nf3 {[%clk 01:31:36]} {[%emt
00:00:14]} cxd4 {[%clk 01:29:53]} {[%emt 00:01:45]} 7. cxd4 {[%clk 01:31:49]}
{[%emt 00:00:16]} Bd7 {[%clk 01:29:56]} {[%emt 00:00:28]} 8. O-O {[%clk
01:31:48]} {[%emt 00:00:31]} Nxd4 {[%clk 01:02:58]} {[%emt 00:27:29]} 9. Ng5
{[%clk 01:32:00]} {[%emt 00:00:17]} Nc6 {[%clk 00:43:14]} {[%emt 00:20:14]} 10.
Nxf7 {[%clk 01:28:31]} {[%emt 00:03:59]} Kxf7 {[%clk 00:39:49]} {[%emt
00:03:55]} 11. Qh5+ {[%clk 01:28:48]} {[%emt 00:00:12]} g6 {[%clk 00:39:09]}
{[%emt 00:01:11]} 12. Bxg6+ {[%clk 01:29:10]} {[%emt 00:00:07]} hxg6 {[%clk
00:39:32]} {[%emt 00:00:06]} 13. Qxh8 {[%clk 01:29:09]} {[%emt 00:00:07]} Bg7
{[%emt 00:01:18]} 14. Qh7 {[%clk 01:29:31]} {[%emt 00:00:01]} Nxe5 {[%clk
00:32:05]} {[%emt 00:07:41]} 15. h3 {[%clk 01:27:47]} {[%emt 00:02:14]} Nf6
{[%clk 00:25:33]} {[%emt 00:07:02]} 16. Qh4 {[%clk 01:27:28]} {[%emt 00:00:49]}
Rh8 {[%clk 00:22:49]} {[%emt 00:03:15]} 17. Qg3 {[%clk 01:25:33]} {[%emt
00:02:24]} Nh5 {[%clk 00:21:18]} {[%emt 00:02:02]} 18. Qa3 {[%clk 01:24:01]}
{[%emt 00:02:01]} Rf8 {[%clk 00:20:28]} {[%emt 00:01:20]} 19. Be3 {[%clk
01:22:00]} {[%emt 00:02:32]} d4 {[%clk 00:19:43]} {[%emt 00:01:16]} 20. Bg5
{[%clk 01:20:46]} {[%emt 00:01:44]} Kg8 {[%clk 00:15:53]} {[%emt 00:04:20]} 21.
Nd2 {[%clk 01:20:57]} {[%emt 00:00:18]} Nf7 {[%clk 00:14:25]} {[%emt 00:01:59]}
22. Be7 {[%clk 01:20:39]} {[%emt 00:00:48]} Re8 {[%clk 00:11:40]} {[%emt
00:03:15]} 23. Rac1 {[%clk 01:17:25]} {[%emt 00:03:43]} Nf4 {[%clk 00:10:56]}
{[%emt 00:01:15]} 24. Rc2 {[%clk 01:08:37]} {[%emt 00:09:18]} d3 {[%clk
00:10:15]} {[%emt 00:01:11]} 25. Rc4 {[%clk 01:08:41]} {[%emt 00:00:26]} Ne2+
{[%clk 00:08:08]} {[%emt 00:02:37]} 26. Kh1 {[%clk 01:08:49]} {[%emt 00:00:22]}
Bxb2 {[%clk 00:08:00]} {[%emt 00:00:39]} 27. Qc5 {[%clk 01:05:10]} {[%emt
00:04:07]} Be5 {[%clk 00:04:55]} {[%emt 00:03:34]} 28. Qxb6 {[%clk 01:02:54]}
{[%emt 00:02:48]} axb6 {[%clk 00:05:21]} {[%emt 00:00:04]} 29. Bh4 {[%clk
01:01:36]} {[%emt 00:01:47]} b5 {[%clk 00:04:44]} {[%emt 00:01:08]} 30. Rg4
{[%clk 01:00:48]} {[%emt 00:01:17]} Kg7 {[%clk 00:03:32]} {[%emt 00:01:43]} 31.
Rd1 {[%clk 00:59:49]} {[%emt 00:01:26]} Bd4 {[%clk 00:02:34]} {[%emt 00:01:31]}
32. Nf3 {[%clk 00:59:34]} {[%emt 00:00:45]} e5 {[%clk 00:02:40]} {[%emt
00:00:24]} 33. Nxd4 {[%clk 00:58:51]} {[%emt 00:00:50]} Bxg4 {[%clk 00:03:10]}
34. hxg4 {[%clk 00:58:16]} {[%emt 00:01:28]} exd4 {[%clk 00:01:40]} {[%emt
00:02:00]} 35. Rxd3 {[%clk 00:58:18]} {[%emt 00:00:19]} g5 {[%clk 00:02:07]}
{[%emt 00:00:13]} 36. Bg3 {[%clk 00:58:43]} {[%emt 00:00:05]} Nxg3+ {[%clk
00:02:33]} {[%emt 00:00:04]} 37. fxg3 {[%clk 00:59:05]} {[%emt 00:00:07]} Re4
{[%clk 00:02:17]} {[%emt 00:00:45]} 38. Kg1 {[%clk 00:57:46]} {[%emt 00:00:43]}
Kf6 {[%clk 00:02:37]} {[%emt 00:01:17]} 39. Kf2 {[%clk 00:58:07]} {[%emt
00:00:09]} Ne5 {[%clk 00:02:21]} {[%emt 00:00:46]} 40. Rb3 {[%clk 00:58:09]}
{[%emt 00:00:28]} Nxg4+ {[%clk 00:02:15]} {[%emt 00:00:37]} 41. Kf1 {[%clk
00:58:08]} {[%emt 00:00:31]} Re5 {[%clk 00:02:36]} {[%emt 00:00:08]} 42. Rd3
{[%clk 00:58:06]} {[%emt 00:00:33]} Rd5 {[%clk 00:02:37]} {[%emt 00:00:29]} 43.
Rf3+ {[%clk 00:57:55]} {[%emt 00:00:40]} Rf5 {[%clk 00:02:54]} {[%emt
00:00:14]} 44. Ke2 {[%clk 00:58:12]} {[%emt 00:00:12]} Rxf3 {[%clk 00:03:17]}
{[%emt 00:00:07]} 45. gxf3 {[%emt 00:00:07]} Ne5 {[%emt 00:00:08]} 46. f4
{[%clk 00:58:42]} {[%emt 00:00:16]} gxf4 {[%clk 00:04:12]} {[%emt 00:00:04]} 47.
gxf4 {[%clk 00:58:28]} {[%emt 00:00:19]} Nc6 {[%clk 00:04:40]} {[%emt
00:00:27]} 48. a3 {[%clk 00:58:17]} {[%emt 00:00:42]} Kf5 {[%clk 00:04:47]}
{[%emt 00:00:23]} 49. Kf3 {[%clk 00:58:35]} {[%emt 00:00:11]} Ne7 {[%clk
00:04:38]} {[%emt 00:00:39]} 0-1

[Event "32nd NATO Chess Championship"]
[Site "Tartu, Estonia"]
[Date "2022.06.30"]
[Round "5.26"]
[White "Randall, Gordon"]
[Black "Windey, Luc"]
[Result "1-0"]
[TimeControl "90 min + 30 sec increment from move one"]
[WhiteFideId "2056518"]
[BlackFideId "249220"]
[WhiteElo "1954"]
[BlackElo "1624"]

1. d4 {[%clk 01:30:53]} {[%emt 00:00:05]} d5 {[%clk 01:30:57]} {[%emt
00:00:05]} 2. c4 {[%clk 01:31:07]} {[%emt 00:00:15]} dxc4 {[%clk 01:31:09]}
{[%emt 00:00:18]} 3. e4 {[%clk 01:31:19]} {[%emt 00:00:17]} e6 {[%clk
01:30:11]} {[%emt 00:01:31]} 4. Bxc4 {[%clk 01:30:12]} {[%emt 00:01:36]} Bb4+
{[%clk 01:28:16]} {[%emt 00:02:25]} 5. Nc3 {[%clk 01:29:26]} {[%emt 00:01:15]}
Bxc3+ {[%clk 01:27:42]} {[%emt 00:01:05]} 6. bxc3 {[%clk 01:29:28]} {[%emt
00:00:27]} h6 {[%clk 01:25:49]} {[%emt 00:02:25]} 7. Ne2 {[%clk 01:22:35]}
{[%emt 00:07:23]} Nf6 {[%clk 01:23:41]} {[%emt 00:02:39]} 8. Qd3 {[%clk
01:14:16]} {[%emt 00:08:47]} O-O {[%clk 01:20:48]} {[%emt 00:03:24]} 9. e5
{[%clk 01:11:11]} {[%emt 00:03:35]} Nd5 {[%clk 01:20:33]} {[%emt 00:00:44]} 10.
Qg3 {[%clk 01:10:52]} {[%emt 00:00:48]} Kh8 {[%clk 01:18:21]} {[%emt 00:02:43]}
11. Qh3 {[%clk 01:06:14]} {[%emt 00:05:08]} f5 {[%clk 01:15:07]} {[%emt
00:03:45]} 12. exf6 {[%clk 00:59:43]} {[%emt 00:07:01]} Qxf6 {[%clk 01:14:22]}
{[%emt 00:01:15]} 13. O-O {[%clk 00:59:35]} {[%emt 00:00:38]} Nc6 {[%clk
01:05:06]} {[%emt 00:09:46]} 14. Qg3 {[%clk 00:58:26]} {[%emt 00:01:39]} Rf7
{[%clk 00:55:34]} {[%emt 00:10:02]} 15. Bd3 {[%clk 00:51:18]} {[%emt 00:07:38]}
e5 {[%clk 00:46:15]} {[%emt 00:09:50]} 16. Bg6 {[%clk 00:48:14]} {[%emt
00:03:33]} Re7 {[%clk 00:43:59]} {[%emt 00:02:45]} 17. c4 {[%clk 00:45:52]}
{[%emt 00:02:52]} Nf4 {[%clk 00:41:45]} {[%emt 00:02:44]} 18. Bxf4 {[%clk
00:42:49]} {[%emt 00:03:33]} exf4 {[%clk 00:41:31]} {[%emt 00:00:44]} 19. Nxf4
{[%clk 00:43:11]} {[%emt 00:00:08]} Nxd4 {[%clk 00:39:19]} {[%emt 00:02:43]} 20.
Bh5 {[%clk 00:41:06]} {[%emt 00:02:35]} Nf5 {[%clk 00:31:29]} {[%emt 00:08:20]}
21. Qa3 {[%clk 00:38:29]} {[%emt 00:03:07]} Re4 {[%clk 00:29:20]} {[%emt
00:02:39]} 22. Ng6+ {[%clk 00:36:58]} {[%emt 00:02:01]} Kg8 {[%clk 00:28:09]}
{[%emt 00:01:42]} 23. Qc5 {[%clk 00:32:44]} {[%emt 00:04:43]} Qd6 {[%clk
00:27:56]} {[%emt 00:00:44]} 24. Qxd6 {[%clk 00:31:31]} {[%emt 00:01:44]} Nxd6
{[%clk 00:24:24]} {[%emt 00:04:02]} 25. Bf3 {[%clk 00:31:35]} {[%emt 00:00:25]}
Rxc4 {[%clk 00:23:50]} {[%emt 00:01:04]} 26. Bd5+ {[%clk 00:31:36]} {[%emt
00:00:28]} Kh7 {[%clk 00:23:31]} {[%emt 00:00:50]} 27. Bxc4 {[%clk 00:30:44]}
{[%emt 00:01:22]} Nxc4 {[%clk 00:23:09]} {[%emt 00:00:51]} 28. Rac1 {[%clk
00:30:24]} {[%emt 00:00:50]} b5 {[%clk 00:22:52]} {[%emt 00:00:49]} 29. Ne7
{[%clk 00:29:34]} {[%emt 00:01:18]} Be6 {[%clk 00:17:25]} {[%emt 00:05:58]} 30.
Rfe1 {[%clk 00:29:16]} {[%emt 00:00:47]} Bf7 {[%clk 00:17:24]} {[%emt
00:00:32]} 31. Nc6 {[%clk 00:28:47]} {[%emt 00:00:58]} Bd5 {[%clk 00:16:57]}
{[%emt 00:00:58]} 32. Nd4 {[%clk 00:27:21]} {[%emt 00:01:55]} c6 {[%clk
00:15:56]} {[%emt 00:01:31]} 33. Re7 {[%clk 00:26:56]} {[%emt 00:00:54]} Kg6
{[%emt 00:03:00]} 34. Nxc6 {[%clk 00:26:12]} {[%emt 00:00:01]} Kf6 {[%clk
00:14:46]} {[%emt 00:00:25]} 35. Rc7 {[%emt 00:04:16]} a6 {[%clk 00:12:30]} 36.
Nb4 {[%clk 00:22:29]} {[%emt 00:03:12]} Be4 {[%clk 00:12:18]} {[%emt 00:00:42]}
37. f3 {[%clk 00:21:16]} {[%emt 00:01:42]} Bf5 {[%clk 00:12:25]} {[%emt
00:00:23]} 38. Rc6+ {[%clk 00:21:19]} {[%emt 00:00:28]} Kf7 {[%clk 00:09:52]}
{[%emt 00:03:03]} 39. Rxa6 {[%clk 00:20:48]} {[%emt 00:01:01]} Rxa6 {[%clk
00:09:36]} {[%emt 00:00:46]} 40. Nxa6 {[%clk 00:21:06]} {[%emt 00:00:12]} Be6
{[%clk 00:09:25]} {[%emt 00:00:41]} 41. Nc7 {[%clk 00:20:49]} {[%emt 00:00:48]}
Bd7 {[%clk 00:09:26]} {[%emt 00:00:28]} 42. a4 {[%clk 00:20:47]} {[%emt
00:00:32]} Na3 {[%clk 00:07:51]} {[%emt 00:02:06]} 43. axb5 {[%clk 00:20:36]}
{[%emt 00:00:41]} Nxb5 {[%clk 00:08:11]} {[%emt 00:00:10]} 44. Nxb5 {[%clk
00:20:27]} {[%emt 00:00:39]} Bxb5 {[%clk 00:08:33]} {[%emt 00:00:08]} 45. Rc5
{[%clk 00:20:46]} {[%emt 00:00:11]} Bd3 {[%clk 00:08:24]} {[%emt 00:00:39]} 46.
Rc6 {[%clk 00:20:39]} {[%emt 00:00:36]} Bf5 {[%clk 00:08:37]} {[%emt 00:00:19]}
47. Kf2 {[%clk 00:20:40]} {[%emt 00:00:29]} Be6 {[%clk 00:07:42]} {[%emt
00:01:26]} 48. Ke3 {[%clk 00:20:30]} {[%emt 00:00:39]} Bb3 {[%clk 00:05:54]}
{[%emt 00:02:18]} 49. Kf4 {[%clk 00:20:07]} {[%emt 00:00:52]} Ba4 {[%clk
00:05:56]} {[%emt 00:00:31]} 50. Rb6 {[%clk 00:20:16]} {[%emt 00:00:20]} Bc2
{[%clk 00:06:02]} {[%emt 00:00:24]} 51. Ke5 {[%clk 00:20:08]} {[%emt 00:00:37]}
Bd3 {[%clk 00:05:16]} {[%emt 00:01:16]} 52. f4 {[%clk 00:19:52]} {[%emt
00:00:46]} Bf1 {[%clk 00:04:30]} {[%emt 00:01:16]} 53. g3 {[%clk 00:19:58]}
{[%emt 00:00:24]} Bh3 {[%clk 00:04:55]} {[%emt 00:00:06]} 54. f5 {[%clk
00:20:05]} {[%emt 00:00:23]} Bg2 {[%clk 00:05:15]} {[%emt 00:00:10]} 55. Ra6
{[%clk 00:20:00]} {[%emt 00:00:33]} Bf3 {[%clk 00:02:12]} {[%emt 00:03:34]} 56.
f6 {[%clk 00:19:31]} {[%emt 00:01:00]} 1-0

[Event "32nd NATO Chess Championship"]
[Site "Tartu, Estonia"]
[Date "2022.06.30"]
[Round "5.29"]
[White "Simard, Francois"]
[Black "Wendler, Edward"]
[Result "0-1"]
[TimeControl "90 min + 30 sec increment from move one"]
[WhiteFideId "2621681"]
[BlackFideId "30956277"]
[WhiteElo "1757"]
[BlackElo "1839"]

1. d4 {[%clk 01:30:55]} {[%emt 00:00:04]} d5 {[%clk 01:30:54]} {[%emt
00:00:06]} 2. c4 {[%clk 01:31:06]} {[%emt 00:00:20]} e6 {[%clk 01:31:17]}
{[%emt 00:00:06]} 3. Nc3 {[%clk 01:31:03]} {[%emt 00:00:33]} Nf6 {[%clk
01:31:26]} {[%emt 00:00:22]} 4. cxd5 {[%clk 01:31:00]} {[%emt 00:00:35]} exd5
{[%clk 01:31:47]} {[%emt 00:00:08]} 5. Bg5 {[%clk 01:31:08]} {[%emt 00:00:22]}
Be7 {[%clk 01:32:03]} {[%emt 00:00:13]} 6. e3 {[%clk 01:31:14]} {[%emt
00:00:24]} c6 {[%clk 01:30:04]} {[%emt 00:02:30]} 7. Nf3 {[%clk 01:30:34]}
{[%emt 00:01:10]} h6 {[%clk 01:21:03]} {[%emt 00:09:30]} 8. Bf4 {[%clk
01:29:42]} {[%emt 00:01:22]} O-O {[%clk 01:19:52]} {[%emt 00:01:41]} 9. Bd3
{[%clk 01:29:21]} {[%emt 00:00:52]} Re8 {[%clk 01:17:34]} {[%emt 00:02:48]} 10.
Qc2 {[%clk 01:28:09]} {[%emt 00:01:42]} Nbd7 {[%clk 01:15:30]} {[%emt
00:02:34]} 11. h3 {[%clk 01:24:44]} {[%emt 00:03:54]} Nf8 {[%clk 01:06:57]}
{[%emt 00:09:04]} 12. O-O {[%clk 01:24:32]} {[%emt 00:00:42]} Ne6 {[%clk
01:03:18]} {[%emt 00:04:09]} 13. Be5 {[%clk 01:17:00]} {[%emt 00:08:02]} Bd6
{[%clk 00:59:28]} {[%emt 00:04:20]} 14. Bxd6 {[%clk 01:06:35]} {[%emt
00:10:55]} Qxd6 {[%clk 00:59:48]} {[%emt 00:00:10]} 15. Ne5 {[%clk 01:06:44]}
{[%emt 00:00:21]} Nf8 {[%clk 00:57:03]} {[%emt 00:03:15]} 16. Nb1 {[%clk
00:59:20]} {[%emt 00:07:54]} Re7 {[%clk 00:49:50]} {[%emt 00:07:43]} 17. Nd2
{[%clk 00:58:23]} {[%emt 00:01:27]} c5 {[%clk 00:44:39]} {[%emt 00:05:41]} 18.
Nef3 {[%clk 00:58:30]} {[%emt 00:00:23]} c4 {[%clk 00:44:09]} {[%emt 00:01:00]}
19. Be2 {[%clk 00:52:19]} {[%emt 00:06:40]} Rc7 {[%clk 00:33:16]} {[%emt
00:11:23]} 20. Ne5 {[%clk 00:46:04]} {[%emt 00:06:46]} N6d7 {[%clk 00:29:04]}
{[%emt 00:04:41]} 21. Ndf3 {[%clk 00:43:46]} {[%emt 00:02:48]} f6 {[%clk
00:26:10]} {[%emt 00:03:25]} 22. Ng6 Nxg6 {[%clk 00:26:31]} 23. Qxg6 {[%clk
00:41:09]} {[%emt 00:00:06]} Nf8 {[%clk 00:26:56]} {[%emt 00:00:05]} 24. Qh5
{[%clk 00:41:14]} {[%emt 00:00:24]} Bd7 {[%clk 00:22:52]} {[%emt 00:04:35]} 25.
Nh4 {[%clk 00:37:16]} {[%emt 00:04:28]} g5 {[%clk 00:19:00]} {[%emt 00:04:22]}
26. Nf3 {[%clk 00:33:45]} {[%emt 00:04:01]} Be8 {[%clk 00:17:42]} {[%emt
00:01:49]} 27. Qg4 {[%clk 00:33:33]} {[%emt 00:00:41]} h5 {[%clk 00:17:10]}
{[%emt 00:01:02]} 28. Qg3 {[%clk 00:33:12]} {[%emt 00:00:51]} Qxg3 {[%clk
00:17:30]} {[%emt 00:00:09]} 29. fxg3 {[%clk 00:33:36]} {[%emt 00:00:06]} Re7
{[%clk 00:17:29]} {[%emt 00:00:32]} 30. Kf2 {[%clk 00:32:08]} {[%emt 00:01:58]}
Bg6 {[%clk 00:13:32]} {[%emt 00:04:27]} 31. Rfe1 {[%clk 00:31:45]} {[%emt
00:00:53]} Rae8 {[%clk 00:13:25]} {[%emt 00:00:36]} 32. Bd1 {[%clk 00:31:30]}
{[%emt 00:00:45]} Ne6 {[%clk 00:10:52]} {[%emt 00:03:04]} 33. Rc1 {[%clk
00:31:05]} {[%emt 00:00:54]} Kg7 {[%clk 00:09:03]} {[%emt 00:02:19]} 34. Bc2
{[%clk 00:28:08]} {[%emt 00:03:28]} Bxc2 {[%clk 00:09:15]} {[%emt 00:00:18]} 35.
Rxc2 {[%clk 00:28:30]} {[%emt 00:00:08]} Kg6 {[%clk 00:08:18]} {[%emt
00:01:27]} 36. Rce2 {[%clk 00:27:50]} {[%emt 00:01:08]} g4 {[%clk 00:08:20]}
{[%emt 00:00:29]} 37. Nd2 {[%clk 00:23:57]} {[%emt 00:04:24]} b5 {[%clk
00:06:25]} {[%emt 00:02:25]} 38. b4 {[%clk 00:21:08]} {[%emt 00:03:19]} Ng5
{[%clk 00:03:55]} {[%emt 00:02:59]} 39. h4 {[%clk 00:19:14]} {[%emt 00:02:23]}
Ne4+ {[%clk 00:04:11]} {[%emt 00:00:14]} 40. Nxe4 {[%clk 00:19:02]} {[%emt
00:00:43]} Rxe4 {[%clk 00:04:39]} {[%emt 00:00:02]} 41. Rc1 {[%clk 00:17:55]}
{[%emt 00:01:37]} R8e6 {[%clk 00:04:45]} {[%emt 00:00:24]} 42. Rc3 {[%clk
00:17:29]} {[%emt 00:00:56]} Ra6 {[%clk 00:05:11]} {[%emt 00:00:04]} 43. a3
{[%clk 00:17:14]} {[%emt 00:00:45]} Ra4 {[%clk 00:04:07]} {[%emt 00:01:34]} 44.
Ra2 {[%clk 00:16:35]} {[%emt 00:01:08]} Re6 {[%clk 00:04:08]} {[%emt 00:00:30]}
45. Rc1 {[%clk 00:16:54]} {[%emt 00:00:12]} Rea6 {[%clk 00:03:19]} {[%emt
00:01:18]} 46. Rca1 {[%clk 00:17:14]} {[%emt 00:00:10]} Rb6 {[%clk 00:03:11]}
{[%emt 00:00:38]} 47. Rb1 {[%clk 00:15:13]} {[%emt 00:02:31]} Kf5 {[%clk
00:02:21]} {[%emt 00:01:20]} 48. Ke2 {[%clk 00:15:03]} {[%emt 00:00:40]} a5
{[%clk 00:02:13]} {[%emt 00:00:38]} 49. bxa5 {[%clk 00:11:41]} {[%emt
00:03:52]} Rxa5 {[%clk 00:02:34]} {[%emt 00:00:09]} 50. Rf1+ {[%clk 00:11:28]}
{[%emt 00:00:43]} Ke6 {[%clk 00:02:11]} {[%emt 00:00:53]} 51. Kd1 {[%clk
00:10:56]} {[%emt 00:01:02]} b4 {[%clk 00:01:59]} {[%emt 00:00:42]} 52. Raf2
{[%clk 00:11:18]} {[%emt 00:00:08]} Kf7 {[%clk 00:01:49]} {[%emt 00:00:40]} 53.
axb4 {[%clk 00:11:25]} {[%emt 00:00:24]} Ra1+ {[%clk 00:02:09]} {[%emt
00:00:10]} 54. Kc2 {[%clk 00:11:33]} {[%emt 00:00:22]} Rxf1 {[%clk 00:01:39]}
{[%emt 00:01:00]} 55. Rxf1 {[%clk 00:11:56]} {[%emt 00:00:07]} Ke6 {[%clk
00:02:00]} {[%emt 00:00:08]} 56. Ra1 {[%clk 00:10:16]} {[%emt 00:02:10]} Rxb4
{[%clk 00:01:55]} {[%emt 00:00:35]} 57. Ra6+ {[%clk 00:10:38]} {[%emt
00:00:08]} Kf5 {[%clk 00:01:10]} {[%emt 00:01:15]} 58. Rd6 {[%clk 00:10:45]}
{[%emt 00:00:23]} Rb5 {[%clk 00:01:18]} {[%emt 00:00:22]} 59. Kc3 {[%clk
00:10:49]} {[%emt 00:00:26]} Rb3+ {[%clk 00:01:46]} {[%emt 00:00:03]} 60. Kd2
{[%clk 00:09:06]} {[%emt 00:02:12]} Rb2+ {[%clk 00:01:58]} {[%emt 00:00:18]} 61.
Kc3 {[%clk 00:08:51]} {[%emt 00:00:46]} Rxg2 {[%clk 00:02:25]} {[%emt
00:00:02]} 62. Rxd5+ {[%clk 00:08:21]} {[%emt 00:00:59]} Ke4 {[%clk 00:01:06]}
{[%emt 00:01:49]} 63. Rxh5 {[%clk 00:08:39]} {[%emt 00:00:13]} Rxg3 {[%clk
00:01:33]} {[%emt 00:00:03]} 64. Kxc4 {[%clk 00:07:05]} {[%emt 00:02:04]} Rxe3
{[%clk 00:01:32]} {[%emt 00:00:31]} 65. Rh8 {[%clk 00:06:21]} {[%emt 00:01:14]}
Kf4 {[%clk 00:00:37]} {[%emt 00:01:25]} 66. d5 {[%clk 00:04:34]} {[%emt
00:02:17]} g3 {[%clk 00:00:44]} {[%emt 00:00:23]} 67. d6 {[%clk 00:04:33]}
{[%emt 00:00:32]} g2 {[%clk 00:01:03]} {[%emt 00:00:11]} 68. Rg8 {[%clk
00:04:57]} {[%emt 00:00:06]} Rg3 {[%clk 00:01:31]} {[%emt 00:00:02]} 69. Rxg3
{[%clk 00:03:17]} {[%emt 00:02:10]} Kxg3 {[%clk 00:01:59]} {[%emt 00:00:02]} 70.
d7 {[%clk 00:03:39]} {[%emt 00:00:08]} g1=Q {[%clk 00:02:22]} {[%emt 00:00:07]}
71. d8=Q {[%clk 00:03:59]} {[%emt 00:00:11]} Qc1+ {[%clk 00:02:10]} {[%emt
00:00:41]} 72. Kb5 {[%clk 00:03:05]} {[%emt 00:01:24]} Qb1+ {[%clk 00:01:57]}
{[%emt 00:00:43]} 73. Ka6 {[%clk 00:01:07]} {[%emt 00:02:28]} Qf1+ {[%clk
00:02:09]} {[%emt 00:00:18]} 74. Ka5 {[%clk 00:00:56]} {[%emt 00:00:41]} Qf5+
{[%clk 00:02:34]} {[%emt 00:00:05]} 75. Ka6 {[%clk 00:00:50]} {[%emt 00:00:37]}
Kxh4 {[%clk 00:03:00]} {[%emt 00:00:04]} 76. Qh8+ {[%clk 00:00:37]} {[%emt
00:00:42]} Kg4 {[%clk 00:03:26]} {[%emt 00:00:04]} 77. Qg7+ {[%clk 00:00:58]}
{[%emt 00:00:10]} Kf4 {[%clk 00:03:44]} {[%emt 00:00:11]} 78. Qc7+ {[%clk
00:01:04]} {[%emt 00:00:24]} Qe5 {[%clk 00:04:10]} {[%emt 00:00:05]} 79. Qc1+
{[%clk 00:00:55]} {[%emt 00:00:38]} Kf5 {[%clk 00:04:24]} {[%emt 00:00:17]} 80.
Qc2+ {[%clk 00:01:11]} {[%emt 00:00:13]} Kg5 {[%clk 00:04:32]} {[%emt
00:00:22]} 81. Qg2+ {[%clk 00:01:21]} {[%emt 00:00:20]} Kh6 {[%clk 00:04:12]}
{[%emt 00:00:51]} 82. Qh3 {[%clk 00:01:33]} {[%emt 00:00:16]} Kg6 {[%clk
00:04:30]} {[%emt 00:00:13]} 83. Qg4 {[%clk 00:00:44]} {[%emt 00:01:19]} Kf7
{[%clk 00:04:58]} {[%emt 00:00:02]} 84. Qd7+ {[%clk 00:00:58]} {[%emt
00:00:16]} Qe7 {[%clk 00:05:26]} {[%emt 00:00:02]} 85. Qxe7+ {[%clk 00:01:02]}
{[%emt 00:00:26]} Kxe7 {[%clk 00:05:53]} {[%emt 00:00:03]} 86. Kb5 {[%clk
00:01:22]} {[%emt 00:00:09]} Kd6 {[%clk 00:05:56]} {[%emt 00:00:27]} 87. Kc4
{[%clk 00:01:46]} {[%emt 00:00:07]} Ke5 {[%clk 00:06:06]} {[%emt 00:00:20]} 88.
Kd3 {[%clk 00:02:11]} {[%emt 00:00:05]} Kf4 {[%clk 00:06:13]} {[%emt 00:00:23]}
89. Ke2 {[%clk 00:02:21]} {[%emt 00:00:20]} Kg3 {[%clk 00:06:22]} {[%emt
00:00:20]} 90. Ke1 {[%clk 00:01:55]} {[%emt 00:00:57]} Kf3 {[%clk 00:06:30]}
{[%emt 00:00:22]} 91. Kf1 {[%clk 00:02:13]} {[%emt 00:00:13]} f5 {[%clk
00:06:52]} {[%emt 00:00:08]} 0-1

[Event "32nd NATO Chess Championship"]
[Site "Tartu, Estonia"]
[Date "2022.06.30"]
[Round "5.30"]
[White "Rizihs, Valerijs"]
[Black "Koopmeiners, Karl"]
[Result "1-0"]
[TimeControl "90 min + 30 sec increment from move one"]
[WhiteFideId "11603380"]
[BlackFideId "24624373"]
[WhiteElo "1619"]
[BlackElo "1946"]

1. d4 {[%clk 01:30:36]} Nf6 {[%clk 00:00:00]} 2. Nf3 d5 {[%clk 00:00:00]} 3.
Bg5 {[%clk 01:30:36]} e6 {[%clk 00:00:00]} 4. e3 {[%clk 01:30:36]} Be7 {[%clk
00:00:00]} 5. c3 {[%clk 01:30:36]} O-O {[%clk 00:00:00]} 6. Bd3 {[%clk
01:30:36]} c5 {[%clk 00:00:00]} 7. O-O {[%clk 01:30:36]} Nc6 {[%clk 00:00:00]}
8. Nbd2 {[%clk 01:30:36]} cxd4 {[%clk 00:00:00]} 9. exd4 {[%clk 01:30:36]} h6
{[%clk 00:00:00]} 10. Bh4 {[%clk 01:30:36]} Nh5 {[%clk 00:00:00]} 11. Bxe7
{[%clk 01:30:36]} Qxe7 {[%clk 00:00:00]} 12. Re1 {[%clk 01:30:36]} Nf6 {[%clk
00:00:00]} 13. Rc1 {[%clk 01:30:36]} Bd7 {[%clk 00:00:00]} 14. Ne5 {[%clk
01:30:36]} Rab8 {[%clk 00:00:00]} 15. Bb1 {[%clk 01:30:36]} Rfc8 {[%clk
00:00:00]} 16. Nb3 {[%clk 01:30:36]} b5 {[%clk 00:00:00]} 17. Qd3 {[%clk
01:30:36]} b4 {[%clk 00:00:00]} 18. Re3 {[%clk 01:30:36]} bxc3 {[%clk
00:00:00]} 19. bxc3 {[%clk 01:30:36]} Kf8 {[%clk 00:00:00]} 20. Rf3 {[%clk
01:30:36]} Qa3 {[%clk 00:00:00]} 21. Qe3 {[%clk 01:30:36]} Nxe5 {[%clk
00:00:00]} 22. dxe5 {[%clk 01:30:36]} Ne4 {[%clk 00:00:00]} 23. Bxe4 {[%clk
01:30:36]} dxe4 {[%clk 00:00:00]} 24. Rf4 {[%clk 01:30:36]} Kg8 {[%clk
00:00:00]} 25. h3 {[%clk 01:30:36]} Rc4 {[%clk 00:00:00]} 26. Rd1 {[%clk
01:30:36]} Bc6 {[%clk 00:00:00]} 27. Rd4 {[%clk 01:30:36]} Rxd4 {[%clk
00:00:00]} 28. Nxd4 {[%clk 01:30:36]} Bd5 {[%clk 00:00:00]} 29. Rg4 {[%clk
01:30:36]} Kf8 {[%clk 00:00:00]} 30. Qg3 {[%clk 01:30:36]} Qc1+ {[%clk
00:00:00]} 31. Kh2 {[%clk 01:30:36]} g6 {[%clk 00:00:00]} 32. Qh4 {[%clk
01:30:36]} h5 {[%clk 00:00:00]} 33. Rf4 {[%clk 01:30:36]} e3 {[%clk 00:00:00]}
34. Qf6 {[%clk 01:30:36]} Rb7 {[%clk 00:00:00]} 35. Ne2 {[%clk 01:30:36]} Qf1
{[%clk 00:00:00]} 36. Qd8+ {[%clk 01:30:36]} Kg7 {[%clk 00:00:00]} 37. Qf6+
{[%clk 01:30:36]} Kh7 {[%clk 00:00:00]} 38. f3 {[%clk 01:30:36]} Qxe2 {[%clk
00:00:00]} 39. Qd8 {[%clk 01:30:36]} Qb5 {[%clk 00:00:00]} 40. c4 {[%clk
01:30:36]} Bxc4 {[%clk 00:00:00]} 41. Qf8 {[%clk 01:30:36]} Qd7 {[%clk
00:00:00]} 42. Rxc4 {[%clk 01:30:36]} 1-0